[Event "*** Titled Tuesday Blitz"]
[Site "Chess.com"]
[Date "2019.04.02"]
[Round "6"]
[White "Tiqr777"]
[Black "SARGISMV"]
[Result "0-1"]
[WhiteElo "2634"]
[BlackElo "2455"]
[TimeControl "180+2"]
[EndTime "15:19:46 PDT"]
[Termination "SARGISMV won by resignation"]

1. d4 {[%clk 0:03:01.9]} 1... Nf6 {[%clk 0:02:59.2]} 2. Nf3 {[%clk 0:03:02.8]}
2... g6 {[%clk 0:02:58.4]} 3. Bg5 {[%clk 0:03:03.2]} 3... Bg7 {[%clk 0:02:59.2]}
4. Nbd2 {[%clk 0:03:03.6]} 4... d5 {[%clk 0:02:59.1]} 5. e3 {[%clk 0:03:04.5]}
5... O-O {[%clk 0:02:59.6]} 6. Bd3 {[%clk 0:03:05.9]} 6... c5 {[%clk 0:02:56.6]}
7. c3 {[%clk 0:03:06.2]} 7... Bg4 {[%clk 0:02:46.3]} 8. h3 {[%clk 0:03:06.4]}
8... Bxf3 {[%clk 0:02:46.9]} 9. Nxf3 {[%clk 0:03:05.6]} 9... Nbd7 {[%clk
0:02:47.9]} 10. O-O {[%clk 0:03:04.3]} 10... Rc8 {[%clk 0:02:43]} 11. Rc1 {[%clk
0:02:58.4]} 11... Qb6 {[%clk 0:02:43.1]} 12. Qe2 {[%clk 0:02:55.1]} 12... h6
{[%clk 0:02:38.9]} 13. Bh4 {[%clk 0:02:52.6]} 13... Rfe8 {[%clk 0:02:39]} 14.
Rb1 {[%clk 0:02:44.9]} 14... e5 {[%clk 0:02:25.7]} 15. dxe5 {[%clk 0:02:43.5]}
15... Nxe5 {[%clk 0:02:27.6]} 16. Nxe5 {[%clk 0:02:44.7]} 16... Rxe5 {[%clk
0:02:28.4]} 17. Bg3 {[%clk 0:02:44.9]} 17... Re6 {[%clk 0:02:27.4]} 18. Qd2
{[%clk 0:02:42]} 18... Rd8 {[%clk 0:02:21.7]} 19. b4 {[%clk 0:02:39]} 19... c4
{[%clk 0:02:16.9]} 20. Bc2 {[%clk 0:02:32.7]} 20... Ne4 {[%clk 0:02:18.3]} 21.
Bxe4 {[%clk 0:02:28.1]} 21... dxe4 {[%clk 0:02:20.2]} 22. Qe2 {[%clk 0:02:21.2]}
22... Rd3 {[%clk 0:02:20.3]} 23. Rfc1 {[%clk 0:02:22.4]} 23... Bxc3 {[%clk
0:02:15.1]} 24. Rc2 {[%clk 0:02:02.2]} 24... Qb5 {[%clk 0:01:59.9]} 25. a4
{[%clk 0:01:55.7]} 25... Qxa4 {[%clk 0:01:39.8]} 26. Ra2 {[%clk 0:01:56.1]}
26... Qb5 {[%clk 0:01:30.9]} 27. Rxa7 {[%clk 0:01:56.8]} 27... Ra6 {[%clk
0:01:31.1]} 28. Rxa6 {[%clk 0:01:51.8]} 28... Qxa6 {[%clk 0:01:28.5]} 29. b5
{[%clk 0:01:50]} 29... Qe6 {[%clk 0:01:18.2]} 30. Qa2 {[%clk 0:01:47.6]} 30...
Qd5 {[%clk 0:01:14.5]} 31. Qa4 {[%clk 0:01:33.1]} 31... Bg7 {[%clk 0:01:09.1]}
32. b6 {[%clk 0:01:13.6]} 32... c3 {[%clk 0:01:08.5]} 33. Rc1 {[%clk 0:01:14.7]}
33... Kh7 {[%clk 0:01:07.3]} 34. h4 {[%clk 0:01:14.6]} 34... h5 {[%clk
0:00:50.1]} 35. Qe8 {[%clk 0:01:14]} 35... Rd1+ {[%clk 0:00:49.1]} 36. Rxd1
{[%clk 0:01:14.2]} 36... Qxd1+ {[%clk 0:00:50.9]} 37. Kh2 {[%clk 0:01:15.5]}
37... Qd5 {[%clk 0:00:39.8]} 38. Qc8 {[%clk 0:01:10.2]} 38... Bf6 {[%clk
0:00:31.2]} 39. Qc7 {[%clk 0:01:00.8]} 39... Kg7 {[%clk 0:00:29.5]} 40. Bd6
{[%clk 0:00:58.4]} 40... c2 {[%clk 0:00:27.7]} 41. Ba3 {[%clk 0:00:48.8]} 41...
Be5+ {[%clk 0:00:27.2]} 0-1

[Event "*** Titled Tuesday Blitz"]
[Site "Chess.com"]
[Date "2019.04.02"]
[Round "6"]
[White "KRASAVCHIK2002"]
[Black "djogrodek1"]
[Result "0-1"]
[WhiteElo "2404"]
[BlackElo "2533"]
[TimeControl "180+2"]
[EndTime "15:19:47 PDT"]
[Termination "djogrodek1 won by resignation"]

1. e4 {[%clk 0:03:01.9]} 1... c5 {[%clk 0:02:59]} 2. Nf3 {[%clk 0:03:02.6]} 2...
Nc6 {[%clk 0:02:57.8]} 3. d4 {[%clk 0:03:03]} 3... cxd4 {[%clk 0:02:56.7]} 4.
Nxd4 {[%clk 0:03:04.9]} 4... g6 {[%clk 0:02:57.1]} 5. Nc3 {[%clk 0:03:03.7]}
5... Bg7 {[%clk 0:02:55.6]} 6. Be3 {[%clk 0:03:03.7]} 6... Nf6 {[%clk
0:02:55.3]} 7. Nxc6 {[%clk 0:02:47.5]} 7... bxc6 {[%clk 0:02:55]} 8. e5 {[%clk
0:02:10.4]} 8... Ng8 {[%clk 0:02:53.6]} 9. f4 {[%clk 0:02:06.8]} 9... f6 {[%clk
0:02:51.8]} 10. e6 {[%clk 0:01:48.8]} 10... Nh6 {[%clk 0:02:12.1]} 11. exd7+
{[%clk 0:01:47.7]} 11... Bxd7 {[%clk 0:02:14]} 12. Be2 {[%clk 0:01:39.5]} 12...
Nf5 {[%clk 0:02:11.3]} 13. Bf2 {[%clk 0:01:40.1]} 13... O-O {[%clk 0:02:08.6]}
14. O-O {[%clk 0:01:40.4]} 14... Qc7 {[%clk 0:02:06.2]} 15. Bc4+ {[%clk
0:01:31.2]} 15... Kh8 {[%clk 0:02:05.6]} 16. Qf3 {[%clk 0:01:30.5]} 16... Nd6
{[%clk 0:02:04]} 17. Bd3 {[%clk 0:01:27.4]} 17... Rab8 {[%clk 0:02:00.3]} 18.
Rae1 {[%clk 0:01:16.7]} 18... Bf5 {[%clk 0:01:56.9]} 19. b3 {[%clk 0:01:10.9]}
19... Qd7 {[%clk 0:01:49.9]} 20. Ne4 {[%clk 0:01:06.4]} 20... Nxe4 {[%clk
0:01:19.5]} 21. Bxe4 {[%clk 0:01:04.7]} 21... e5 {[%clk 0:01:12.5]} 22. Bxc6
{[%clk 0:00:55.4]} 22... Qc7 {[%clk 0:01:13.5]} 23. Be4 {[%clk 0:00:50.2]} 23...
Bxe4 {[%clk 0:01:11.6]} 24. Qxe4 {[%clk 0:00:49.8]} 24... f5 {[%clk 0:01:11.2]}
25. Qa4 {[%clk 0:00:28.4]} 25... e4 {[%clk 0:01:12.4]} 26. c4 {[%clk 0:00:22.8]}
26... Rb7 {[%clk 0:01:08.2]} 27. Be3 {[%clk 0:00:19.2]} 27... Qe7 {[%clk
0:00:59.2]} 28. Rd1 {[%clk 0:00:17.5]} 28... h6 {[%clk 0:01:00.6]} 29. Qc6
{[%clk 0:00:16]} 29... Kh7 {[%clk 0:00:59.1]} 30. Qd6 {[%clk 0:00:16.3]} 30...
Qf7 {[%clk 0:00:58.6]} 31. Qd5 {[%clk 0:00:16]} 31... Qc7 {[%clk 0:00:56.2]} 32.
Qd6 {[%clk 0:00:07.1]} 32... Qa5 {[%clk 0:00:56.8]} 33. Rd2 {[%clk 0:00:03.9]}
33... Qc3 {[%clk 0:00:54]} 34. Kf2 {[%clk 0:00:03.1]} 34... g5 {[%clk
0:00:54.5]} 35. g3 {[%clk 0:00:03]} 35... Rff7 {[%clk 0:00:53]} 36. Re2 {[%clk
0:00:04]} 36... Rbd7 {[%clk 0:00:53]} 37. Qc5 {[%clk 0:00:05.4]} 37... Rd3
{[%clk 0:00:54.4]} 38. Rc1 {[%clk 0:00:06]} 38... Qf6 {[%clk 0:00:53.2]} 39.
Rcc2 {[%clk 0:00:06.4]} 39... gxf4 {[%clk 0:00:54.8]} 40. Bxf4 {[%clk
0:00:06.8]} 40... Qg6 {[%clk 0:00:54.5]} 41. Re3 {[%clk 0:00:07.4]} 41... Bd4
{[%clk 0:00:55.1]} 42. Qd5 {[%clk 0:00:08.2]} 42... Bxe3+ {[%clk 0:00:55.8]} 0-1

[Event "*** Titled Tuesday Blitz"]
[Site "Chess.com"]
[Date "2019.04.02"]
[Round "6"]
[White "iturrizaga"]
[Black "robbykevlishvili"]
[Result "1/2-1/2"]
[WhiteElo "2890"]
[BlackElo "2855"]
[TimeControl "180+2"]
[EndTime "15:19:50 PDT"]
[Termination "Game drawn by repetition"]

1. c4 {[%clk 0:03:01.9]} 1... e5 {[%clk 0:02:59.9]} 2. Nc3 {[%clk 0:03:03.1]}
2... Nf6 {[%clk 0:02:59.9]} 3. Nf3 {[%clk 0:03:04.4]} 3... Nc6 {[%clk
0:03:01.1]} 4. e3 {[%clk 0:03:05.7]} 4... Bb4 {[%clk 0:03:01.4]} 5. Qc2 {[%clk
0:03:06.6]} 5... d6 {[%clk 0:02:58.5]} 6. Ne2 {[%clk 0:03:03.9]} 6... a5 {[%clk
0:02:53.7]} 7. a3 {[%clk 0:03:04.7]} 7... Bc5 {[%clk 0:02:54.5]} 8. d4 {[%clk
0:03:06.3]} 8... exd4 {[%clk 0:02:54.5]} 9. exd4 {[%clk 0:03:06.7]} 9... Ba7
{[%clk 0:02:56]} 10. h3 {[%clk 0:02:58]} 10... O-O {[%clk 0:02:56.3]} 11. Be3
{[%clk 0:02:56.7]} 11... Re8 {[%clk 0:02:56.8]} 12. Rd1 {[%clk 0:02:23.7]} 12...
Ne7 {[%clk 0:02:40.9]} 13. Ng3 {[%clk 0:02:22]} 13... b5 {[%clk 0:02:42]} 14. b3
{[%clk 0:01:45.1]} 14... a4 {[%clk 0:02:42]} 15. Be2 {[%clk 0:01:46.3]} 15...
axb3 {[%clk 0:02:35.7]} 16. Qxb3 {[%clk 0:01:48.2]} 16... Rb8 {[%clk 0:02:18.6]}
17. cxb5 {[%clk 0:01:37.7]} 17... Ned5 {[%clk 0:02:18.7]} 18. O-O {[%clk
0:01:38.1]} 18... Nxe3 {[%clk 0:02:11.7]} 19. fxe3 {[%clk 0:01:40]} 19... Qe7
{[%clk 0:02:11.2]} 20. e4 {[%clk 0:01:18.4]} 20... c5 {[%clk 0:01:39.1]} 21. Bc4
{[%clk 0:01:13.6]} 21... cxd4 {[%clk 0:01:31.1]} 22. Kh1 {[%clk 0:01:08.9]}
22... Be6 {[%clk 0:01:06.8]} 23. Nxd4 {[%clk 0:00:57.5]} 23... Bxd4 {[%clk
0:00:45.8]} 24. Rxd4 {[%clk 0:00:57.1]} 24... Bxc4 {[%clk 0:00:47]} 25. Qxc4
{[%clk 0:00:59]} 25... Qe5 {[%clk 0:00:48.2]} 26. Nf5 {[%clk 0:00:18.9]} 26...
Nxe4 {[%clk 0:00:49.1]} 27. a4 {[%clk 0:00:20.1]} 27... Rbc8 {[%clk 0:00:32.8]}
28. Qd5 {[%clk 0:00:19.4]} 28... Qxd5 {[%clk 0:00:20]} 29. Rxd5 {[%clk
0:00:21.3]} 29... Ra8 {[%clk 0:00:20.8]} 30. Rd4 {[%clk 0:00:17.2]} 30... g6
{[%clk 0:00:20.1]} 31. Nh6+ {[%clk 0:00:10.4]} 31... Kg7 {[%clk 0:00:21.4]} 32.
Rf4 {[%clk 0:00:09]} 32... Ng3+ {[%clk 0:00:21.7]} 33. Kh2 {[%clk 0:00:10.3]}
33... Ne2 {[%clk 0:00:22.9]} 34. Rxf7+ {[%clk 0:00:11.3]} 34... Kxh6 {[%clk
0:00:23.7]} 35. Rh4+ {[%clk 0:00:12.9]} 35... Kg5 {[%clk 0:00:24.8]} 36. Rg4+
{[%clk 0:00:14.5]} 36... Kh6 {[%clk 0:00:26]} 37. Rh4+ {[%clk 0:00:15.8]} 37...
Kg5 {[%clk 0:00:27.2]} 38. Rg4+ {[%clk 0:00:08.7]} 38... Kh6 {[%clk 0:00:28.1]}
39. Rh4+ {[%clk 0:00:09.7]} 1/2-1/2

[Event "*** Titled Tuesday Blitz"]
[Site "Chess.com"]
[Date "2019.04.02"]
[Round "6"]
[White "SolidAsARook"]
[Black "AsaHoffmann"]
[Result "1-0"]
[WhiteElo "2246"]
[BlackElo "2193"]
[TimeControl "180+2"]
[EndTime "15:19:59 PDT"]
[Termination "SolidAsARook won by resignation"]

1. c4 {[%clk 0:03:01.9]} 1... Nf6 {[%clk 0:02:54.6]} 2. g3 {[%clk 0:03:03]} 2...
c6 {[%clk 0:02:55]} 3. Bg2 {[%clk 0:03:03.3]} 3... d6 {[%clk 0:02:55.3]} 4. Nf3
{[%clk 0:03:04.8]} 4... e5 {[%clk 0:02:55.6]} 5. O-O {[%clk 0:03:01.5]} 5... Be7
{[%clk 0:02:55.7]} 6. e3 {[%clk 0:03:02.7]} 6... O-O {[%clk 0:02:53.2]} 7. d4
{[%clk 0:03:03.7]} 7... e4 {[%clk 0:02:53.6]} 8. Nfd2 {[%clk 0:03:04.2]} 8... d5
{[%clk 0:02:54]} 9. Nc3 {[%clk 0:03:04.3]} 9... Be6 {[%clk 0:02:53.8]} 10. b3
{[%clk 0:03:02.7]} 10... Qd7 {[%clk 0:02:53.5]} 11. f3 {[%clk 0:02:54]} 11...
exf3 {[%clk 0:02:53]} 12. Nxf3 {[%clk 0:02:41.7]} 12... Bg4 {[%clk 0:02:49.7]}
13. Qc2 {[%clk 0:02:34.8]} 13... Bf5 {[%clk 0:02:47.2]} 14. Qe2 {[%clk
0:02:19.6]} 14... Na6 {[%clk 0:02:35.3]} 15. Ne5 {[%clk 0:02:17.2]} 15... Qe6
{[%clk 0:02:35]} 16. Bb2 {[%clk 0:01:57]} 16... Nc7 {[%clk 0:02:30]} 17. Rae1
{[%clk 0:01:49.5]} 17... Bh3 {[%clk 0:02:26.8]} 18. e4 {[%clk 0:01:44.9]} 18...
Bxg2 {[%clk 0:02:26.7]} 19. Qxg2 {[%clk 0:01:45.1]} 19... dxe4 {[%clk
0:02:20.4]} 20. Nxe4 {[%clk 0:01:45.8]} 20... Nxe4 {[%clk 0:02:18.7]} 21. Rxe4
{[%clk 0:01:45.5]} 21... Qd6 {[%clk 0:01:58.8]} 22. Qh3 {[%clk 0:01:30.4]} 22...
Rad8 {[%clk 0:01:48.9]} 23. Qf5 {[%clk 0:01:16]} 23... Qe6 {[%clk 0:01:30]} 24.
Qf3 {[%clk 0:00:44.5]} 24... f5 {[%clk 0:01:29.6]} 25. Ree1 {[%clk 0:00:40.6]}
25... Bd6 {[%clk 0:01:22.2]} 26. Nxc6 {[%clk 0:00:35.4]} 26... Qxe1 {[%clk
0:01:18.6]} 27. Rxe1 {[%clk 0:00:35.4]} 27... bxc6 {[%clk 0:01:19.1]} 28. Qxc6
{[%clk 0:00:36.3]} 28... Rf6 {[%clk 0:01:10.8]} 29. Qf3 {[%clk 0:00:26.4]} 29...
f4 {[%clk 0:01:08.2]} 30. g4 {[%clk 0:00:23.8]} 30... Rg6 {[%clk 0:01:03.6]} 31.
c5 {[%clk 0:00:21.9]} 31... Bf8 {[%clk 0:01:02.5]} 32. Qxf4 {[%clk 0:00:23.2]}
32... Nd5 {[%clk 0:00:59.9]} 33. Qe4 {[%clk 0:00:23.4]} 33... Nf6 {[%clk
0:01:00]} 34. Qe6+ {[%clk 0:00:24]} 34... Kh8 {[%clk 0:01:00.7]} 35. h3 {[%clk
0:00:25.3]} 35... h5 {[%clk 0:00:55.6]} 36. Kh2 {[%clk 0:00:25.3]} 36... hxg4
{[%clk 0:00:55.5]} 37. h4 {[%clk 0:00:24.3]} 37... g3+ {[%clk 0:00:55.3]} 38.
Kg1 {[%clk 0:00:25.6]} 38... Kh7 {[%clk 0:00:47.6]} 39. d5 {[%clk 0:00:26.8]}
39... Nxd5 {[%clk 0:00:41.6]} 40. Qf5 {[%clk 0:00:27.7]} 40... Nf6 {[%clk
0:00:34.3]} 41. h5 {[%clk 0:00:28.2]} 41... Bxc5+ {[%clk 0:00:29.7]} 42. Qxc5
{[%clk 0:00:27.1]} 42... Rd5 {[%clk 0:00:28.9]} 43. hxg6+ {[%clk 0:00:26.7]}
43... Kxg6 {[%clk 0:00:29.2]} 44. Qc2+ {[%clk 0:00:26.2]} 1-0

[Event "*** Titled Tuesday Blitz"]
[Site "Chess.com"]
[Date "2019.04.02"]
[Round "6"]
[White "sofaceindisguise"]
[Black "ALeks_Ivlev"]
[Result "1-0"]
[WhiteElo "2553"]
[BlackElo "2477"]
[TimeControl "180+2"]
[EndTime "15:20:03 PDT"]
[Termination "sofaceindisguise won by resignation"]

1. c4 {[%clk 0:03:01.9]} 1... c5 {[%clk 0:02:58]} 2. Nf3 {[%clk 0:03:02.4]} 2...
Nc6 {[%clk 0:02:58.7]} 3. Nc3 {[%clk 0:03:04.3]} 3... g6 {[%clk 0:02:58.4]} 4.
e3 {[%clk 0:03:05.1]} 4... Bg7 {[%clk 0:02:59.1]} 5. d3 {[%clk 0:03:06.4]} 5...
Nh6 {[%clk 0:02:59.9]} 6. g3 {[%clk 0:03:07.5]} 6... O-O {[%clk 0:03:00.3]} 7.
Bg2 {[%clk 0:03:08.9]} 7... a6 {[%clk 0:03:01.1]} 8. O-O {[%clk 0:03:10]} 8...
Rb8 {[%clk 0:03:01.9]} 9. Qe2 {[%clk 0:03:04.7]} 9... b5 {[%clk 0:03:02.2]} 10.
Rd1 {[%clk 0:03:02.2]} 10... Nf5 {[%clk 0:02:56.7]} 11. Ne4 {[%clk 0:02:57.9]}
11... d6 {[%clk 0:02:42.4]} 12. Rb1 {[%clk 0:02:58.5]} 12... Qc7 {[%clk
0:02:40.9]} 13. b3 {[%clk 0:02:59.5]} 13... Bb7 {[%clk 0:02:35]} 14. Bb2 {[%clk
0:03:00]} 14... e5 {[%clk 0:02:33.8]} 15. Nc3 {[%clk 0:02:55.3]} 15... Nce7
{[%clk 0:02:24.9]} 16. g4 {[%clk 0:02:52.2]} 16... Nh6 {[%clk 0:02:21.1]} 17. g5
{[%clk 0:02:50.1]} 17... Nhf5 {[%clk 0:02:20.3]} 18. Ne4 {[%clk 0:02:47.8]}
18... d5 {[%clk 0:02:10.3]} 19. cxd5 {[%clk 0:02:47.7]} 19... Nxd5 {[%clk
0:02:03.4]} 20. Rbc1 {[%clk 0:02:47.9]} 20... Nb4 {[%clk 0:01:51.3]} 21. a3
{[%clk 0:02:47]} 21... Nd5 {[%clk 0:01:18.6]} 22. Nxc5 {[%clk 0:02:46.7]} 22...
Qe7 {[%clk 0:01:12.6]} 23. Nxb7 {[%clk 0:02:33.5]} 23... Rxb7 {[%clk 0:01:13.2]}
24. Qc2 {[%clk 0:02:30]} 24... Rc7 {[%clk 0:01:08.8]} 25. Qb1 {[%clk 0:02:28.3]}
25... Rxc1 {[%clk 0:01:02.7]} 26. Rxc1 {[%clk 0:02:29.3]} 26... Nd6 {[%clk
0:00:47.2]} 27. Rc5 {[%clk 0:02:22.1]} 27... Qe6 {[%clk 0:00:44.7]} 28. Nxe5
{[%clk 0:02:13.2]} 28... Bxe5 {[%clk 0:00:45.2]} 29. Bxe5 {[%clk 0:02:13.3]}
29... Qxe5 {[%clk 0:00:36.8]} 30. Rxd5 {[%clk 0:02:14.1]} 30... Qe6 {[%clk
0:00:37]} 31. Qb2 {[%clk 0:02:00.7]} 31... Nf5 {[%clk 0:00:36.9]} 32. Qe5 {[%clk
0:01:58.3]} 32... Qc6 {[%clk 0:00:33.6]} 33. Rc5 {[%clk 0:01:54.8]} 33... Qd7
{[%clk 0:00:33.9]} 34. Be4 {[%clk 0:01:55.2]} 34... Nh4 {[%clk 0:00:33.3]} 35.
Qg3 {[%clk 0:01:56.3]} 35... Qe7 {[%clk 0:00:31.3]} 36. b4 {[%clk 0:01:55.3]}
36... f5 {[%clk 0:00:26.8]} 37. Bd5+ {[%clk 0:01:55.5]} 37... Kh8 {[%clk
0:00:26.3]} 38. Qxh4 {[%clk 0:01:56.3]} 38... f4 {[%clk 0:00:27.8]} 39. e4
{[%clk 0:01:47.9]} 39... Qg7 {[%clk 0:00:26.8]} 40. Qh3 {[%clk 0:01:40.3]} 40...
Qa1+ {[%clk 0:00:17.4]} 41. Qf1 {[%clk 0:01:40.7]} 41... Qe5 {[%clk 0:00:18.4]}
42. h4 {[%clk 0:01:38.6]} 42... f3 {[%clk 0:00:19.3]} 43. Qh3 {[%clk 0:01:37.6]}
43... Qa1+ {[%clk 0:00:19.7]} 44. Kh2 {[%clk 0:01:38.9]} 44... Qb2 {[%clk
0:00:20.5]} 45. Qg3 {[%clk 0:01:37.4]} 45... a5 {[%clk 0:00:21.7]} 46. bxa5
{[%clk 0:01:33.1]} 46... Qa1 {[%clk 0:00:21.9]} 47. a6 {[%clk 0:01:33.2]} 47...
h6 {[%clk 0:00:22.7]} 48. gxh6 {[%clk 0:01:31.2]} 48... Kh7 {[%clk 0:00:24]} 49.
Rc7+ {[%clk 0:01:32.2]} 49... Kh8 {[%clk 0:00:24]} 50. a7 {[%clk 0:01:30.8]}
50... Qf6 {[%clk 0:00:18.8]} 51. a8=Q {[%clk 0:01:27.2]} 51... Rxa8 {[%clk
0:00:20.1]} 52. Bxa8 {[%clk 0:01:29.1]} 1-0

[Event "*** Titled Tuesday Blitz"]
[Site "Chess.com"]
[Date "2019.04.02"]
[Round "6"]
[White "eldur16"]
[Black "MrChessSponge"]
[Result "1/2-1/2"]
[WhiteElo "2503"]
[BlackElo "2272"]
[TimeControl "180+2"]
[EndTime "15:20:04 PDT"]
[Termination "Game drawn by agreement"]

1. e4 {[%clk 0:03:01.9]} 1... e5 {[%clk 0:02:58.9]} 2. Nf3 {[%clk 0:03:02.4]}
2... Nc6 {[%clk 0:02:58.3]} 3. Bb5 {[%clk 0:03:03]} 3... a6 {[%clk 0:02:59.2]}
4. Ba4 {[%clk 0:03:03.9]} 4... Nf6 {[%clk 0:02:53.7]} 5. O-O {[%clk 0:03:04.5]}
5... Be7 {[%clk 0:02:52]} 6. Re1 {[%clk 0:03:05.4]} 6... b5 {[%clk 0:02:49.3]}
7. Bb3 {[%clk 0:03:06.4]} 7... O-O {[%clk 0:02:51.2]} 8. d4 {[%clk 0:03:03.7]}
8... d6 {[%clk 0:02:47.9]} 9. c3 {[%clk 0:03:04.1]} 9... Bg4 {[%clk 0:02:44.7]}
10. d5 {[%clk 0:03:04.9]} 10... Na5 {[%clk 0:02:42.1]} 11. Bc2 {[%clk
0:03:05.8]} 11... c6 {[%clk 0:02:40.9]} 12. h3 {[%clk 0:03:05.1]} 12... Bc8
{[%clk 0:02:36.1]} 13. dxc6 {[%clk 0:03:05.8]} 13... Qc7 {[%clk 0:02:34]} 14.
Nbd2 {[%clk 0:03:06.5]} 14... Qxc6 {[%clk 0:02:31.9]} 15. Nf1 {[%clk 0:03:07]}
15... Nc4 {[%clk 0:02:21.6]} 16. Ng3 {[%clk 0:03:07.3]} 16... Re8 {[%clk
0:02:19.2]} 17. a4 {[%clk 0:03:06.7]} 17... Be6 {[%clk 0:02:14.6]} 18. Ng5
{[%clk 0:02:49.8]} 18... Bd7 {[%clk 0:02:06.2]} 19. Qe2 {[%clk 0:02:47.8]} 19...
h6 {[%clk 0:02:02]} 20. Nf3 {[%clk 0:02:47.8]} 20... Be6 {[%clk 0:02:01.6]} 21.
Nh4 {[%clk 0:02:42.6]} 21... g6 {[%clk 0:01:52.1]} 22. b3 {[%clk 0:02:13.7]}
22... Na5 {[%clk 0:01:46.6]} 23. axb5 {[%clk 0:02:12.1]} 23... axb5 {[%clk
0:01:39.8]} 24. Bxh6 {[%clk 0:02:08.8]} 24... Nxb3 {[%clk 0:01:35.9]} 25. Bxb3
{[%clk 0:02:02.9]} 25... Bxb3 {[%clk 0:01:32.2]} 26. Rxa8 {[%clk 0:01:50.8]}
26... Rxa8 {[%clk 0:01:29]} 27. Nhf5 {[%clk 0:01:41.3]} 27... gxf5 {[%clk
0:01:24.2]} 28. Nxf5 {[%clk 0:01:41.8]} 28... Bd8 {[%clk 0:01:20.7]} 29. Qf3
{[%clk 0:01:39]} 29... Kh7 {[%clk 0:01:17.3]} 30. Bg5 {[%clk 0:01:04.6]} 30...
Be6 {[%clk 0:01:13.4]} 31. Re3 {[%clk 0:00:50]} 31... Kg8 {[%clk 0:01:10.3]} 32.
Bh6 {[%clk 0:00:33.8]} 32... Ra1+ {[%clk 0:01:10.9]} 33. Kh2 {[%clk 0:00:34.3]}
33... Kh7 {[%clk 0:01:12.8]} 34. Bg5 {[%clk 0:00:29.4]} 34... Kg8 {[%clk
0:01:13.2]} 35. Qg3 {[%clk 0:00:27.9]} 35... Kf8 {[%clk 0:01:10.7]} 36. Qh4
{[%clk 0:00:28.3]} 36... Bxf5 {[%clk 0:01:09.7]} 37. exf5 {[%clk 0:00:24.2]}
37... d5 {[%clk 0:01:10.7]} 38. Qh8+ {[%clk 0:00:18.6]} 38... Ke7 {[%clk
0:01:05.6]} 39. Rxe5+ {[%clk 0:00:19.3]} 39... Kd7 {[%clk 0:01:05.8]} 40. Qf8
{[%clk 0:00:18.4]} 40... Kc8 {[%clk 0:01:03.1]} 41. Qxf7 {[%clk 0:00:15.3]}
41... Qxc3 {[%clk 0:00:42.5]} 42. Bxf6 {[%clk 0:00:14.3]} 42... Rh1+ {[%clk
0:00:41.9]} 43. Kxh1 {[%clk 0:00:13.8]} 43... Qc1+ {[%clk 0:00:42.6]} 44. Kh2
{[%clk 0:00:14.3]} 44... Qf4+ {[%clk 0:00:43.3]} 45. Kh1 {[%clk 0:00:15.2]}
1/2-1/2

[Event "*** Titled Tuesday Blitz"]
[Site "Chess.com"]
[Date "2019.04.02"]
[Round "6"]
[White "Zavgorodniy_Serg"]
[Black "JonahWillow"]
[Result "0-1"]
[WhiteElo "2478"]
[BlackElo "2696"]
[TimeControl "180+2"]
[EndTime "15:20:05 PDT"]
[Termination "JonahWillow won by resignation"]

1. e4 {[%clk 0:02:59.4]} 1... c5 {[%clk 0:03:00.2]} 2. Nf3 {[%clk 0:02:59.8]}
2... e6 {[%clk 0:03:01.3]} 3. d3 {[%clk 0:02:59.6]} 3... d5 {[%clk 0:03:00.9]}
4. Qe2 {[%clk 0:02:58.4]} 4... Nc6 {[%clk 0:02:40.7]} 5. g3 {[%clk 0:02:58.7]}
5... g6 {[%clk 0:02:41]} 6. exd5 {[%clk 0:02:53.4]} 6... Qxd5 {[%clk 0:02:39.9]}
7. Nc3 {[%clk 0:02:54.4]} 7... Qd8 {[%clk 0:02:39.4]} 8. Ne4 {[%clk 0:02:51.8]}
8... Nf6 {[%clk 0:02:29.2]} 9. c3 {[%clk 0:02:46.1]} 9... Be7 {[%clk 0:02:25.6]}
10. Bh6 {[%clk 0:02:12.4]} 10... Ng4 {[%clk 0:02:13.3]} 11. Bg7 {[%clk
0:01:54.2]} 11... Rg8 {[%clk 0:02:13.7]} 12. h3 {[%clk 0:01:55.4]} 12... Nxf2
{[%clk 0:01:58.3]} 13. Qxf2 {[%clk 0:01:57.3]} 13... Rxg7 {[%clk 0:01:58.5]} 14.
Nxc5 {[%clk 0:01:58.4]} 14... Qb6 {[%clk 0:01:56.9]} 15. d4 {[%clk 0:01:59.3]}
15... e5 {[%clk 0:01:48.8]} 16. Nb3 {[%clk 0:01:04.1]} 16... e4 {[%clk
0:01:43.8]} 17. Nfd2 {[%clk 0:01:01.4]} 17... f5 {[%clk 0:01:44.9]} 18. O-O-O
{[%clk 0:00:53.7]} 18... Be6 {[%clk 0:01:37.1]} 19. Nc4 {[%clk 0:00:54.6]} 19...
Bxc4 {[%clk 0:01:31.3]} 20. Bxc4 {[%clk 0:00:56.5]} 20... O-O-O {[%clk
0:01:29.8]} 21. Kb1 {[%clk 0:00:47.1]} 21... Kb8 {[%clk 0:01:24.6]} 22. Qe2
{[%clk 0:00:44.2]} 22... Na5 {[%clk 0:01:21.3]} 23. Nxa5 {[%clk 0:00:43.3]}
23... Qxa5 {[%clk 0:01:23.2]} 24. Bb3 {[%clk 0:00:41.9]} 24... Bg5 {[%clk
0:01:18.6]} 25. h4 {[%clk 0:00:35.8]} 25... Bf6 {[%clk 0:01:16.4]} 26. h5 {[%clk
0:00:36.4]} 26... Bg5 {[%clk 0:01:15.9]} 27. hxg6 {[%clk 0:00:36.8]} 27... hxg6
{[%clk 0:01:17.5]} 28. Be6 {[%clk 0:00:28.7]} 28... Re7 {[%clk 0:01:10.8]} 29.
d5 {[%clk 0:00:29.4]} 29... e3 {[%clk 0:00:56.9]} 30. g4 {[%clk 0:00:28.8]}
30... f4 {[%clk 0:00:33.9]} 31. Qc2 {[%clk 0:00:29.6]} 31... Rg7 {[%clk
0:00:20.1]} 32. Rd4 {[%clk 0:00:30.2]} 32... f3 {[%clk 0:00:20.1]} 33. Qe4
{[%clk 0:00:29.2]} 33... f2 {[%clk 0:00:15]} 34. Qe5+ {[%clk 0:00:21.6]} 34...
Qc7 {[%clk 0:00:16.3]} 35. d6 {[%clk 0:00:23]} 35... Qc6 {[%clk 0:00:16.3]} 36.
Bd5 {[%clk 0:00:22.9]} 36... Qxd6 {[%clk 0:00:16.1]} 37. Qxg5 {[%clk 0:00:22.8]}
37... e2 {[%clk 0:00:17.2]} 38. Qc1 {[%clk 0:00:17.7]} 38... Re7 {[%clk
0:00:17.4]} 39. Bf3 {[%clk 0:00:16.1]} 39... e1=Q {[%clk 0:00:15.3]} 40. Rxd6
{[%clk 0:00:16]} 40... Qxc1+ {[%clk 0:00:16.5]} 41. Kxc1 {[%clk 0:00:17]} 41...
Rxd6 {[%clk 0:00:18.4]} 42. Kc2 {[%clk 0:00:17.8]} 42... Re1 {[%clk 0:00:19.1]}
0-1